[Event "Asian Amateur-ch Open 2022"]
[Site "Muscat"]
[Date "2022.10.02"]
[Round "5.20"]
[White "Fadhil, khalid Ali"]
[Black "Alharthi, Ahmed Mohammed A"]
[Result "0-1"]
[ECO "B01"]
[WhiteElo "1451"]
[BlackElo "1950"]
[Annotator "TA"]
[PlyCount "108"]
[EventDate "2022.09.29"]
[EventType "swiss"]
[SourceTitle "playchess.com"]
[Source "ChessBase"]
[SourceQuality "1"]
[TimeControl "5400+30"]

{[%evp 10,108,47,33,55,28,31,0,26,-4,0,-29,-28,-31,-15,-30,-24,-25,-30,-31,-34,-39,-20,-36,-29,-49,-7,-14,-11,-10,-14,-11,-4,-2,-4,-12,0,-8,0,-22,-6,-8,0,0,0,-34,0,0,0,0,0,0,0,-41,0,0,0,0,0,0,0,0,0,-8,-16,-50,-57,-56,-28,-22,-29,-90,-9,-9,-9,-9,-10,-9,-9,-9,-16,-443,-441,-439,-439,-423,-406,-336,-336,-1137,-1123,-840,-495,-989,-925,-2206,-2206,-2026,-1718,-1408,-954]} 1. e4 {[%emt 1:31:00]} d5 {[%emt 0:00:30]} 2. exd5 {[%emt 0:00:00]} Nf6 {[%emt 0:00:18]} 3. Nf3 {[%emt 0:00:00]} Qxd5 {[%emt 0:00:25]} 4. Nc3 {[%emt 0:00:00]} Qa5 {[%emt 0:00:38]} 5. Be2 {[%emt 0:00:00]} Bf5 {[%emt 0:00:44]} 6. O-O {[%emt 0:00:00]} e6 {[%emt 0:00:40] B01: Scandinavian Defence.} 7. a3 {[%emt 0:00:00]} c6 {[%emt 0:01:17]} 8. d3 {[%emt 0:00:00]} Bd6 {[%emt 0:00:41] The position is equal.} 9. Bd2 {[%emt 0:00:00][%cal Oc3e4]} Qc7 {[%emt 0:00:37]} 10. Bg5 {[%emt 0:00:00]} Nbd7 {[%emt 0:01:46][%cal Bb8d7,Bd7e5,Be5g4][%mdl 32] [#]} 11. Bh4 $146 {[%emt 0:00:00]} ({Predecessor:} 11. Qd2 h6 12. Be3 O-O 13. h3 Rfe8 14. Rad1 Nb6 15. b4 Rad8 16. Qc1 Nbd5 17. Nxd5 Nxd5 {0-1 (31) Norgaard,L-Nikontovic,S (2320) Denmark 1998}) 11... O-O {[%emt 0:06:18]} 12. Bg3 {[%emt 0:00:00]} Bxg3 {[%emt 0:02:07]} 13. hxg3 {[%emt 0:00:00]} h6 {[%emt 0:01:07]} 14. Nh2 {[%emt 0:00:00]} Rad8 {[%emt 0:04:00]} 15. Bf3 {[%emt 0:00:00]} Ne5 {[%emt 0:03:14]} 16. Qe2 {[%emt 0:00:00]} Rfe8 {[%emt 0:10:24]} 17. Be4 {[%emt 0:00:00]} Bg4 {[%emt 0:02:07]} 18. Nxg4 {[%emt 0:00:00]} Nexg4 {[%emt 0:04:42]} 19. Bf3 {[%emt 0:00:00]} h5 {[%emt 0:02:41]} 20. Ne4 {[%emt 0:00:00]} Qe5 {[%emt 0:01:18]} 21. Nxf6+ {[%emt 0:00:00]} Qxf6 {[%emt 0:00:44]} 22. c3 {[%emt 0:00:00]} Qg6 {[%emt 0:05:04]} 23. Rad1 {[%emt 0:00:00]} Nf6 {[%emt 0:50:38]} 24. Be4 {[%emt 0:00:00]} Nxe4 {[%emt 0:00:00]} 25. dxe4 {[%emt 0:00:00]} Qg4 {[%emt 0:00:00]} 26. Qxg4 {[%emt 0:00:00]} hxg4 $11 {[%emt 0:00:00][%mdl 4096] Endgame KRR-KRR} 27. f4 {[%emt 0:00:00]} gxf3 {[%emt 0:00:00]} 28. gxf3 {[%emt 0:00:00]} e5 {[%emt 0:00:00]} 29. Kf2 {[%emt 0:00:00]} Kf8 {[%emt 0:00:00]} 30. Ke3 {[%emt 0:00:00]} Ke7 {[%emt 0:00:00]} 31. f4 {[%emt 0:00:00]} exf4+ {[%emt 0:00:00]} 32. gxf4 {[%emt 0:00:00]} Rxd1 {[%emt 0:00:00]} 33. Rxd1 $15 {[%emt 0:00:00] KR-KR} Rh8 {[%emt 0:00:00]} 34. a4 {[%emt 0:00:00]} c5 {[%emt 0:00:00]} 35. e5 {[%emt 0:00:00]} Rh2 {[%emt 0:00:00]} 36. b4 {[%emt 0:00:00]} Rh3+ {[%emt 0:00:00]} 37. Kd2 {[%emt 0:00:00]} cxb4 {[%emt 0:00:00]} 38. cxb4 {[%emt 0:00:00]} Rb3 {[%emt 0:00:00]} 39. Rc1 {[%emt 0:00:00]} ({Of course not} 39. b5 Rf3 40. Rg1 Rxf4 41. Rxg7 Rxa4 $17) 39... Rxb4 {[%emt 0:00:00]} 40. Ke3 {[%emt 0:00:00]} (40. f5 $11) 40... g6 {[%emt 0:00:00]} (40... Kd7 $17 41. Rg1 g6) 41. Rc7+ $11 {[%emt 0:00:00]} Ke6 {[%emt 0:00:00]} 42. a5 {[%emt 0:00:00]} a6 {[%emt 0:00:00]} 43. Kf3 {[%emt 0:00:25]} f6 {[%emt 0:00:00]} 44. exf6 {[%emt 0:00:52] [#] Intending f7 and mate.} Kxf6 {[%emt 0:00:00]} 45. Kg4 $2 {[%emt 0:00:08][%mdl 8192] This move loses the game for White.} (45. Rd7 $11) 45... g5 $1 $19 {[%emt 0:00:00][%cal Bg6g5,Bg5f4][%mdl 32]} 46. Kg3 {[%emt 0:01:05]} gxf4+ {[%emt 0:00:00]} 47. Kf3 {[%emt 0:00:45]} Ke5 {[%emt 0:00:00]} 48. Rc5+ {[%emt 0:00:37]} Kd6 {[%emt 0:00:00]} 49. Rh5 {[%emt 0:00:06]} (49. Rc1) 49... Rb5 {[%emt 0:00:31] Black is clearly winning.} 50. Rh7 {[%emt 0:01:43]} Kc6 {[%emt 0:00:25]} 51. Kxf4 {[%emt 0:00:50]} (51. Rh6+ $142 Kc5 52. Rh4) 51... Rxa5 {[%emt 0:00:23] [#] White must now prevent ...Rd5.} 52. Ke3 Rd5 {[%emt 0:13:11]} 53. Rh1 {[%emt 0:00:58]} b5 {[%emt 0:00:00]} 54. Rc1+ {[%emt 0:00:25]} Kb6 {[%emt 0:00:00] Weighted Error Value: White=0.57/Black=0.15 (very precise)} 0-1

[Event "Asian Amateur-ch Open 2022"]
[Site "Muscat"]
[Date "2022.10.02"]
[Round "5.21"]
[White "Salim Issa, Ali Shamas"]
[Black "Khalili, Mehdi"]
[Result "0-1"]
[ECO "E91"]
[WhiteElo "1886"]
[BlackElo "1575"]
[Annotator "NA RC COMBH"]
[PlyCount "160"]
[EventDate "2022.09.29"]
[EventType "swiss"]
[SourceTitle "playchess.com"]
[Source "ChessBase"]
[SourceQuality "1"]
[TimeControl "5400+30"]

1. d4 {[%emt 0:00:03]} Nf6 {[%emt 0:00:58]} 2. c4 {[%emt 0:00:19]} g6 {[%emt 0:00:40]} 3. Nc3 {[%emt 0:00:18]} Bg7 {[%emt 0:00:19]} 4. e4 {[%emt 0:00:19]} d6 {[%emt 0:00:03]} 5. Nf3 {[%emt 0:00:21]} O-O {[%emt 0:00:14]} 6. Be2 {[%emt 0:00:16]} c5 {[%emt 0:04:52]} 7. O-O {[%emt 0:00:43]} Bg4 {[%emt 0:08:20]} 8. Be3 {[%emt 0:00:10]} Bxf3 {[%emt 0:01:16]} 9. Bxf3 {[%emt 0:00:01]} cxd4 {[%emt 0:01:00]} 10. Bxd4 {[%emt 0:00:02]} Nc6 {[%emt 0:01:52]} 11. Be3 {[%emt 0:00:02]} Ne5 {[%emt 0:14:25]} 12. Be2 {[%emt 0:01:40]} Qa5 {[%emt 0:12:20]} 13. Rc1 {[%emt 0:01:05]} Qb4 {[%emt 0:09:44]} 14. b3 {[%emt 0:10:54]} a6 {[%emt 0:05:13]} 15. f4 {[%emt 0:02:39]} Nc6 {[%emt 0:06:31]} 16. Qd2 {[%emt 0:01:32]} Rac8 {[%emt 0:25:30]} 17. Bf3 {[%emt 0:01:08]} Rfd8 {[%emt 0:01:52]} 18. Rfd1 {[%emt 0:00:29]} e5 {[%emt 0:01:55]} 19. Na4 {[%emt 0:03:28]} Qxd2 {[%emt 0:01:20]} 20. Rxd2 {[%emt 0:00:03]} exf4 {[%emt 0:01:22]} 21. Bxf4 {[%emt 0:00:20]} Ne5 {[%emt 0:00:07]} 22. Bxe5 {[%emt 0:01:20]} dxe5 {[%emt 0:00:01]} 23. Rcd1 {[%emt 0:00:33]} Rxd2 {[%emt 0:00:40]} 24. Rxd2 {[%emt 0:00:02]} b5 {[%emt 0:00:30]} 25. Nb6 {[%emt 0:00:43]} Rc6 {[%emt 0:00:37]} 26. Rd8+ {[%emt 0:00:04]} Bf8 {[%emt 0:00:02]} 27. Nd5 {[%emt 0:00:03]} Kg7 {[%emt 0:00:54]} 28. Nxf6 {[%emt 0:00:54]} Rxf6 {[%emt 0:00:02]} 29. cxb5 {[%emt 0:00:36]} axb5 {[%emt 0:00:05]} 30. Rd5 {[%emt 0:00:03]} b4 {[%emt 0:01:11]} 31. h3 {[%emt 0:01:59]} Ra6 {[%emt 0:00:17]} 32. Be2 {[%emt 0:00:50]} Rxa2 {[%emt 0:00:14]} 33. Bc4 {[%emt 0:00:40]} Ra7 {[%emt 0:01:30]} 34. Kf1 {[%emt 0:00:18]} f6 {[%emt 0:00:42]} 35. Ke2 {[%emt 0:00:40]} Kh6 {[%emt 0:00:19]} 36. Kf3 {[%emt 0:00:25]} Kg5 {[%emt 0:00:28]} 37. g3 {[%emt 0:00:54]} h5 {[%emt 0:00:23]} 38. h4+ {[%emt 0:00:02]} Kh6 {[%emt 0:00:09]} 39. g4 {[%emt 0:00:10]} hxg4+ {[%emt 0:00:21]} 40. Kxg4 {[%emt 0:00:02]} Ra1 {[%emt 0:01:07]} 41. Rb5 {[%emt 0:00:54]} Rg1+ {[%emt 0:00:20]} 42. Kh3 {[%emt 0:00:04]} Re1 {[%emt 0:00:27]} 43. Bd5 {[%emt 0:00:33]} Re3+ {[%emt 0:00:36]} 44. Kg4 {[%emt 0:02:44]} Rc3 {[%emt 0:00:45]} 45. Rb8 {[%emt 0:02:54]} Bc5 {[%emt 0:00:43]} 46. Rc8 {[%emt 0:02:26]} Bf2 {[%emt 0:00:24]} 47. Rh8+ {[%emt 0:02:20]} Kg7 {[%emt 0:00:14]} 48. Rg8+ {[%emt 0:00:42]} Kh7 {[%emt 0:00:03]} 49. Rxg6 {[%emt 0:09:07]} Kxg6 {[%emt 0:00:06]} 50. h5+ {[%emt 0:00:32]} Kg7 {[%emt 0:00:40]} 51. Kf5 {[%emt 0:00:56]} Rf3+ {[%emt 0:00:39]} 52. Ke6 {[%emt 0:01:30]} Rh3 {[%emt 0:00:13]} 53. Kd6 {[%emt 0:01:26]} Rxh5 {[%emt 0:00:02]} 54. Kc6 {[%emt 0:00:06]} Bd4 {[%emt 0:00:15]} 55. Kb5 {[%emt 0:00:14]} Bc3 {[%emt 0:00:08]} 56. Kc6 {[%emt 0:00:50]} Rh8 {[%emt 0:00:19]} 57. Kd7 {[%emt 0:00:08]} Rh1 {[%emt 0:00:10]} 58. Ke6 {[%emt 0:00:28]} Rd1 {[%emt 0:00:05]} 59. Kf5 {[%emt 0:01:26]} Ra1 {[%emt 0:01:33]} 60. Bc4 {[%emt 0:00:40]} Ra5 {[%emt 0:00:43]} 61. Bd5 {[%emt 0:00:14]} Ra6 {[%emt 0:00:09]} 62. Bc4 {[%emt 0:00:27]} Rb6 {[%emt 0:00:16]} 63. Bd5 {[%emt 0:00:28]} Kf8 {[%emt 0:00:11]} 64. Bc4 {[%emt 0:00:40]} Ke7 {[%emt 0:00:10]} 65. Bd5 {[%emt 0:00:46]} Rd6 {[%emt 0:00:07]} 66. Bc4 {[%emt 0:00:16]} Rd4 {[%emt 0:00:12]} 67. Bg8 {[%emt 0:00:51]} Bd2 {[%emt 0:00:05]} 68. Bd5 {[%emt 0:00:14]} Rxd5 {[%emt 0:00:35]} 69. exd5 {[%emt 0:00:02]} Kd6 {[%emt 0:00:02]} 70. Ke4 {[%emt 0:01:10]} f5+ {[%emt 0:00:16]} 71. Kxf5 {[%emt 0:00:03]} Kxd5 {[%emt 0:00:02]} 72. Kg4 {[%emt 0:00:24]} Kd4 {[%emt 0:00:01]} 73. Kf3 {[%emt 0:00:02]} Kd3 {[%emt 0:00:06]} 74. Kf2 {[%emt 0:00:07]} e4 {[%emt 0:00:02]} 75. Kf1 {[%emt 0:00:03]} e3 {[%emt 0:00:24]} 76. Kg2 {[%emt 0:01:38]} e2 {[%emt 0:00:08]} 77. Kf3 {[%emt 0:00:38]} e1=Q {[%emt 0:00:18]} 78. Kg4 {[%emt 0:00:16]} Ke4 {[%emt 0:00:29]} 79. Kh5 {[%emt 0:00:20]} Qg1 {[%emt 0:01:03]} 80. Kh4 {[%emt 0:00:07]} Kf3 {[%emt 0:08:04]} 0-1

[Event "Asian Amateur-ch Open 2022"]
[Site "Muscat"]
[Date "2022.10.02"]
[Round "5.22"]
[White "Nadeem Aziz"]
[Black "Al Hinai, Qusay"]
[Result "1-0"]
[ECO "D30"]
[WhiteElo "1797"]
[BlackElo "1201"]
[Annotator "NA RC COMBH"]
[PlyCount "37"]
[EventDate "2022.09.29"]
[EventType "swiss"]
[SourceTitle "playchess.com"]
[Source "ChessBase"]
[SourceQuality "1"]
[TimeControl "5400+30"]

1. d4 {[%emt 0:00:01]} d5 {[%emt 0:00:02]} 2. Nf3 {[%emt 0:00:07]} Nf6 {[%emt 0:00:02]} 3. c4 {[%emt 0:00:05]} e6 {[%emt 0:00:30]} 4. Bg5 {[%emt 0:00:09]} Be7 {[%emt 0:01:03]} 5. Nbd2 {[%emt 0:00:18]} c6 {[%emt 0:01:44]} 6. e3 {[%emt 0:00:04]} h6 {[%emt 0:00:21]} 7. Bh4 {[%emt 0:00:03]} O-O {[%emt 0:01:32]} 8. Rc1 {[%emt 0:00:05]} Re8 {[%emt 0:04:54]} 9. Bd3 {[%emt 0:00:55]} Nbd7 {[%emt 0:02:24]} 10. O-O {[%emt 0:00:13]} b6 {[%emt 0:12:13]} 11. cxd5 {[%emt 0:03:46]} cxd5 {[%emt 0:00:25]} 12. Bg3 {[%emt 0:00:05]} Rf8 {[%emt 0:06:32]} 13. Bc7 {[%emt 0:02:34]} Qe8 {[%emt 0:00:21]} 14. Bb5 {[%emt 0:00:24]} Bd8 {[%emt 0:03:36]} 15. Be5 {[%emt 0:01:46]} Bb7 {[%emt 0:04:17]} 16. Bxf6 {[%emt 0:14:30]} Bxf6 {[%emt 0:00:57]} 17. Qa4 {[%emt 0:01:22]} Bc8 {[%emt 0:09:02]} 18. Rc7 {[%emt 0:04:16]} Bd8 {[%emt 0:00:42]} 19. Rxc8 {[%emt 0:01:00]} 1-0

[Event "Asian Amateur-ch Open 2022"]
[Site "Muscat"]
[Date "2022.10.02"]
[Round "5.23"]
[White "Ghaith Saeed Alnuaimi"]
[Black "Al Abdali, Zeyad Saleh"]
[Result "1/2-1/2"]
[ECO "A36"]
[WhiteElo "1269"]
[BlackElo "1780"]
[Annotator "NA RC COMBH"]
[PlyCount "115"]
[EventDate "2022.09.29"]
[EventType "swiss"]
[SourceTitle "playchess.com"]
[Source "ChessBase"]
[SourceQuality "1"]
[TimeControl "5400+30"]

1. c4 {[%emt 0:00:02]} c5 {[%emt 0:11:13]} 2. g3 {[%emt 0:00:14]} g6 {[%emt 0:03:18]} 3. Bg2 {[%emt 0:00:05]} Nc6 {[%emt 0:00:31]} 4. Nc3 {[%emt 0:00:05]} Bg7 {[%emt 0:00:13]} 5. e3 {[%emt 0:00:07]} e6 {[%emt 0:03:45]} 6. Nge2 {[%emt 0:00:06]} Nge7 {[%emt 0:01:00]} 7. d4 {[%emt 0:00:08]} cxd4 {[%emt 0:02:40]} 8. exd4 {[%emt 0:00:02]} d5 {[%emt 0:00:57]} 9. cxd5 {[%emt 0:00:35]} exd5 {[%emt 0:01:16]} 10. O-O {[%emt 0:00:17]} O-O {[%emt 0:00:18]} 11. Be3 {[%emt 0:01:11]} Bg4 {[%emt 0:04:24]} 12. Qb3 {[%emt 0:11:58]} Qd7 {[%emt 0:05:40]} 13. Nf4 {[%emt 0:19:58]} Nxd4 {[%emt 0:10:13]} 14. Bxd4 {[%emt 0:00:07]} Bxd4 {[%emt 0:00:13]} 15. Nfxd5 {[%emt 0:00:10]} Rfd8 {[%emt 0:13:47]} 16. Nxe7+ {[%emt 0:17:02]} Qxe7 {[%emt 0:01:01]} 17. Nd5 {[%emt 0:01:07]} Qg5 {[%emt 0:12:30]} 18. h4 {[%emt 0:03:22]} Qd2 {[%emt 0:04:30]} 19. Ne3 {[%emt 0:26:04]} Be2 {[%emt 0:12:27]} 20. Rfe1 {[%emt 0:02:29]} Bxe3 {[%emt 0:02:42]} 21. Qxe3 {[%emt 0:04:20]} Qxe3 {[%emt 0:00:28]} 22. fxe3 {[%emt 0:00:01]} Rd2 {[%emt 0:00:35]} 23. b3 {[%emt 0:00:39]} Rb8 {[%emt 0:00:29]} 24. Rec1 {[%emt 0:00:44]} b6 {[%emt 0:01:20]} 25. Rc7 {[%emt 0:00:10]} a5 {[%emt 0:00:10]} 26. a4 {[%emt 0:00:58]} Bd1 {[%emt 0:01:18]} 27. Rc3 {[%emt 0:01:31]} b5 {[%emt 0:01:02]} 28. Rc5 {[%emt 0:03:36]} Bxb3 {[%emt 0:02:19]} 29. axb5 {[%emt 0:00:26]} a4 {[%emt 0:00:37]} 30. Bc6 {[%emt 0:01:18]} Kg7 {[%emt 0:01:26]} 31. e4 {[%emt 0:00:59]} h5 {[%emt 0:01:06]} 32. Bd5 {[%emt 0:00:10]} Rb6 {[%emt 0:00:45]} 33. Rf1 {[%emt 0:01:56]} Bxd5 {[%emt 0:00:32]} 34. exd5 {[%emt 0:00:02]} f5 {[%emt 0:00:58]} 35. Ra1 {[%emt 0:01:00]} Rd4 {[%emt 0:00:25]} 36. Rc7+ {[%emt 0:02:01]} Kh6 {[%emt 0:01:09]} 37. Re1 {[%emt 0:02:54]} Rxd5 {[%emt 0:00:21]} 38. Re8 {[%emt 0:00:10]} g5 {[%emt 0:00:31]} 39. Rh8+ {[%emt 0:00:55]} Kg6 {[%emt 0:00:11]} 40. Rg8+ {[%emt 0:00:50]} Kf6 {[%emt 0:00:10]} 41. hxg5+ {[%emt 0:00:18]} Ke5 {[%emt 0:00:07]} 42. Rc4 {[%emt 0:00:46]} Rd3 {[%emt 0:01:09]} 43. Rxa4 {[%emt 0:00:31]} Rxg3+ {[%emt 0:00:07]} 44. Kf2 {[%emt 0:00:27]} Rb3 {[%emt 0:00:10]} 45. Re8+ {[%emt 0:00:19]} Kd5 {[%emt 0:00:13]} 46. Rd8+ {[%emt 0:00:47]} Ke5 {[%emt 0:00:34]} 47. Re8+ {[%emt 0:00:22]} Kd5 {[%emt 0:00:24]} 48. Rf4 {[%emt 0:00:25]} R6xb5 {[%emt 0:01:30]} 49. Rxf5+ {[%emt 0:00:18]} Kd6 {[%emt 0:00:23]} 50. Rxb5 {[%emt 0:00:30]} Rxb5 {[%emt 0:00:02]} 51. Rg8 {[%emt 0:00:52]} Ke6 {[%emt 0:00:15]} 52. Kg3 {[%emt 0:00:24]} Kf7 {[%emt 0:00:24]} 53. Ra8 {[%emt 0:00:31]} Rxg5+ {[%emt 0:00:07]} 54. Kh4 {[%emt 0:00:30]} Rb5 {[%emt 0:00:26]} 55. Ra7+ {[%emt 0:00:21]} Kg6 {[%emt 0:00:39]} 56. Ra6+ {[%emt 0:00:09]} Kf7 {[%emt 0:00:30]} 57. Rh6 {[%emt 0:00:40]} Kg7 {[%emt 0:01:17]} 58. Rxh5 {[%emt 0:00:14]} 1/2-1/2

[Event "Asian Amateur-ch Open 2022"]
[Site "Muscat"]
[Date "2022.10.02"]
[Round "5.24"]
[White "Said Ahmed Ali Jidal Fadhil"]
[Black "Abdivaliev, Daniial"]
[Result "1/2-1/2"]
[ECO "A47"]
[WhiteElo "1755"]
[BlackElo "1528"]
[Annotator "NA RC COMBH"]
[PlyCount "105"]
[EventDate "2022.09.29"]
[EventType "swiss"]
[SourceTitle "playchess.com"]
[Source "ChessBase"]
[SourceQuality "1"]
[TimeControl "5400+30"]

1. d4 {[%emt 0:00:02]} Nf6 {[%emt 0:00:06]} 2. Nf3 {[%emt 0:00:03]} b6 {[%emt 0:00:11]} 3. Bg5 {[%emt 0:01:09]} d5 {[%emt 0:02:05]} 4. Nbd2 {[%emt 0:00:50]} c5 {[%emt 0:01:19]} 5. e3 {[%emt 0:00:02]} Ba6 {[%emt 0:01:15]} 6. Bxa6 {[%emt 0:00:39]} Nxa6 {[%emt 0:00:05]} 7. c3 {[%emt 0:00:05]} Nc7 {[%emt 0:03:41]} 8. dxc5 {[%emt 0:02:25]} bxc5 {[%emt 0:00:12]} 9. Bxf6 {[%emt 0:00:33]} gxf6 {[%emt 0:00:29]} 10. Qa4+ {[%emt 0:00:39]} Qd7 {[%emt 0:00:09]} 11. Qxd7+ {[%emt 0:01:04]} Kxd7 {[%emt 0:00:05]} 12. O-O-O {[%emt 0:03:27]} e5 {[%emt 0:00:39]} 13. c4 {[%emt 0:02:50]} d4 {[%emt 0:00:48]} 14. exd4 {[%emt 0:00:09]} cxd4 {[%emt 0:00:16]} 15. Ne4 {[%emt 0:02:16]} Ke6 {[%emt 0:02:24]} 16. g4 {[%emt 0:01:30]} h5 {[%emt 0:08:27]} 17. h3 {[%emt 0:00:39]} Bh6+ {[%emt 0:04:49]} 18. Kc2 {[%emt 0:00:35]} Rag8 {[%emt 0:01:06]} 19. Rhg1 {[%emt 0:25:30]} hxg4 {[%emt 0:11:58]} 20. hxg4 {[%emt 0:00:13]} Bf8 {[%emt 0:02:12]} 21. Nfd2 {[%emt 0:08:36]} f5 {[%emt 0:03:37]} 22. gxf5+ {[%emt 0:00:42]} Kxf5 {[%emt 0:00:33]} 23. Ng3+ {[%emt 0:04:03]} Ke6 {[%emt 0:00:27]} 24. f4 {[%emt 0:02:12]} f6 {[%emt 0:12:21]} 25. fxe5 {[%emt 0:06:05]} fxe5 {[%emt 0:00:30]} 26. Nge4 {[%emt 0:02:05]} Be7 {[%emt 0:03:18]} 27. a3 {[%emt 0:01:37]} a5 {[%emt 0:01:48]} 28. Rdf1 {[%emt 0:01:51]} a4 {[%emt 0:03:59]} 29. Rxg8 {[%emt 0:09:15]} Rxg8 {[%emt 0:00:14]} 30. Rh1 {[%emt 0:00:02]} Kf5 {[%emt 0:09:45]} 31. Rh7 {[%emt 0:07:55]} Bd8 {[%emt 0:03:07]} 32. b4 {[%emt 0:05:24]} axb3+ {[%emt 0:02:30]} 33. Kxb3 {[%emt 0:00:05]} Ne6 {[%emt 0:03:19]} 34. Rf7+ {[%emt 0:04:47]} Kg6 {[%emt 0:01:16]} 35. Rf1 {[%emt 0:00:49]} Ng5 {[%emt 0:00:56]} 36. c5 {[%emt 0:01:29]} Nxe4 {[%emt 0:04:13]} 37. Nxe4 {[%emt 0:00:06]} Ba5 {[%emt 0:01:47]} 38. Rg1+ {[%emt 0:01:36]} Kf7 {[%emt 0:00:05]} 39. Rxg8 {[%emt 0:00:02]} Kxg8 {[%emt 0:00:07]} 40. Kc4 {[%emt 0:03:06]} Kg7 {[%emt 0:00:50]} 41. c6 {[%emt 0:02:45]} Kg6 {[%emt 0:00:11]} 42. Kd3 {[%emt 0:01:04]} Kf5 {[%emt 0:01:35]} 43. Nd6+ {[%emt 0:00:35]} Ke6 {[%emt 0:00:01]} 44. Nc4 {[%emt 0:00:01]} Bc7 {[%emt 0:00:23]} 45. Ke4 {[%emt 0:01:07]} Ke7 {[%emt 0:01:11]} 46. a4 {[%emt 0:00:25]} Kd8 {[%emt 0:00:52]} 47. a5 {[%emt 0:00:31]} Bb8 {[%emt 0:00:10]} 48. a6 {[%emt 0:00:35]} Kc7 {[%emt 0:03:22]} 49. Nxe5 {[%emt 0:00:33]} Kb6 {[%emt 0:01:59]} 50. Nd7+ {[%emt 0:00:49]} Kxc6 {[%emt 0:00:31]} 51. Nxb8+ {[%emt 0:00:08]} Kb6 {[%emt 0:00:17]} 52. Kxd4 {[%emt 0:00:10]} Ka7 {[%emt 0:00:00]} 53. Ke4 {[%emt 0:01:50]} 1/2-1/2

[Event "Asian Amateur-ch Open 2022"]
[Site "Muscat"]
[Date "2022.10.02"]
[Round "5.25"]
[White "Ibnu, Iwan Schani"]
[Black "Al Mamari, Ali Abdullah"]
[Result "1/2-1/2"]
[ECO "A36"]
[WhiteElo "1689"]
[BlackElo "1509"]
[Annotator "NA RC COMBH"]
[PlyCount "83"]
[EventDate "2022.09.29"]
[EventType "swiss"]
[SourceTitle "playchess.com"]
[Source "ChessBase"]
[SourceQuality "1"]
[TimeControl "5400+30"]

1. e4 {[%emt 0:00:04]} c5 {[%emt 0:00:22]} 2. c4 {[%emt 0:00:40]} Nc6 {[%emt 0:00:19]} 3. Nc3 {[%emt 0:00:54]} g6 {[%emt 0:00:49]} 4. g3 {[%emt 0:00:03]} Bg7 {[%emt 0:00:09]} 5. Bg2 {[%emt 0:00:07]} e6 {[%emt 0:00:27]} 6. Nge2 {[%emt 0:00:31]} Nge7 {[%emt 0:00:26]} 7. O-O {[%emt 0:00:28]} O-O {[%emt 0:00:35]} 8. f4 {[%emt 0:01:16]} d6 {[%emt 0:01:07]} 9. d3 {[%emt 0:00:06]} a6 {[%emt 0:00:43]} 10. Be3 {[%emt 0:00:12]} Qc7 {[%emt 0:02:28]} 11. d4 {[%emt 0:03:57]} cxd4 {[%emt 0:10:09]} 12. Nxd4 {[%emt 0:00:03]} Nxd4 {[%emt 0:00:11]} 13. Bxd4 {[%emt 0:00:06]} e5 {[%emt 0:06:15]} 14. Be3 {[%emt 0:02:17]} Qxc4 {[%emt 0:03:05]} 15. Qxd6 {[%emt 0:01:17]} Nc6 {[%emt 0:01:50]} 16. Nd5 {[%emt 0:05:14]} Rd8 {[%emt 0:04:09]} 17. Qc7 {[%emt 0:01:57]} Be6 {[%emt 0:14:10]} 18. Rfc1 {[%emt 0:14:30]} Qe2 {[%emt 0:12:50]} 19. Bf1 {[%emt 0:01:47]} Qxb2 {[%emt 0:10:00]} 20. Rab1 {[%emt 0:00:37]} Qxa2 {[%emt 0:03:25]} 21. Rxb7 {[%emt 0:36:33]} Rac8 {[%emt 0:09:21]} 22. Qb6 {[%emt 0:00:19]} Nd4 {[%emt 0:07:47]} 23. Bxd4 {[%emt 0:05:44]} Bxd5 {[%emt 0:00:33]} 24. Rxc8 {[%emt 0:01:14]} Rxc8 {[%emt 0:00:13]} 25. Rb8 {[%emt 0:03:33]} Qc2 {[%emt 0:05:47]} 26. exd5 {[%emt 0:12:08]} exd4 {[%emt 0:00:33]} 27. d6 {[%emt 0:02:48]} Qf5 {[%emt 0:02:06]} 28. Bxa6 {[%emt 0:03:14]} Rf8 {[%emt 0:02:20]} 29. Rxf8+ {[%emt 0:00:12]} Bxf8 {[%emt 0:00:04]} 30. Qc6 {[%emt 0:02:03]} Qe6 {[%emt 0:01:49]} 31. Bc4 {[%emt 0:00:49]} Qxd6 {[%emt 0:00:23]} 32. Qxd6 {[%emt 0:01:09]} Bxd6 {[%emt 0:00:04]} 33. Kg2 {[%emt 0:00:04]} Kg7 {[%emt 0:00:13]} 34. Kf3 {[%emt 0:00:02]} f5 {[%emt 0:00:14]} 35. h3 {[%emt 0:00:08]} h5 {[%emt 0:00:24]} 36. g4 {[%emt 0:00:16]} fxg4+ {[%emt 0:00:40]} 37. hxg4 {[%emt 0:00:02]} h4 {[%emt 0:00:28]} 38. Bf1 {[%emt 0:00:40]} g5 {[%emt 0:01:11]} 39. fxg5 {[%emt 0:01:35]} Kg6 {[%emt 0:00:10]} 40. Ke4 {[%emt 0:01:13]} Bc5 {[%emt 0:01:23]} 41. Kf4 {[%emt 0:00:03]} Bd6+ {[%emt 0:00:46]} 42. Ke4 {[%emt 0:00:02]} 1/2-1/2

[Event "Asian Amateur-ch Open 2022"]
[Site "Muscat"]
[Date "2022.10.02"]
[Round "5.27"]
[White "Salem Muhsan Shuaib"]
[Black "Musallam Salim Al Aamri"]
[Result "0-1"]
[ECO "E07"]
[WhiteElo "1227"]
[BlackElo "1680"]
[Annotator "NA RC COMBH"]
[PlyCount "74"]
[EventDate "2022.09.29"]
[EventType "swiss"]
[SourceTitle "playchess.com"]
[Source "ChessBase"]
[SourceQuality "1"]
[TimeControl "5400+30"]

1. d4 {[%emt 0:00:03]} d5 {[%emt 0:01:31]} 2. c4 {[%emt 0:00:10]} e6 {[%emt 0:00:08]} 3. Nf3 {[%emt 0:00:07]} Nf6 {[%emt 0:00:12]} 4. g3 {[%emt 0:00:08]} Be7 {[%emt 0:00:20]} 5. Bg2 {[%emt 0:00:08]} O-O {[%emt 0:00:19]} 6. O-O {[%emt 0:00:11]} c6 {[%emt 0:00:08]} 7. Nc3 {[%emt 0:00:38]} Nbd7 {[%emt 0:00:40]} 8. Re1 {[%emt 0:02:18]} Bb4 {[%emt 0:00:50]} 9. Bf4 {[%emt 0:06:49]} Ne4 {[%emt 0:04:04]} 10. Rc1 {[%emt 0:01:40]} Qa5 {[%emt 0:01:28]} 11. Qb3 {[%emt 0:06:51]} b6 {[%emt 0:05:24]} 12. a3 {[%emt 0:02:34]} Bxc3 {[%emt 0:00:21]} 13. bxc3 {[%emt 0:00:05]} Ba6 {[%emt 0:00:55]} 14. cxd5 {[%emt 0:03:37]} cxd5 {[%emt 0:03:44]} 15. Qb4 {[%emt 0:15:02]} Rac8 {[%emt 0:06:51]} 16. Qxa5 {[%emt 0:09:15]} bxa5 {[%emt 0:00:05]} 17. Bd2 {[%emt 0:01:11]} Nb6 {[%emt 0:02:22]} 18. Rc2 {[%emt 0:06:19]} a4 {[%emt 0:05:49]} 19. e3 {[%emt 0:03:54]} Bd3 {[%emt 0:02:48]} 20. Rcc1 {[%emt 0:03:16]} f6 {[%emt 0:01:40]} 21. Bf1 {[%emt 0:01:30]} Bxf1 {[%emt 0:02:01]} 22. Kxf1 {[%emt 0:00:09]} Nc4 {[%emt 0:00:11]} 23. Rc2 {[%emt 0:07:12]} Nxa3 {[%emt 0:00:26]} 24. Ra2 {[%emt 0:01:07]} Nc4 {[%emt 0:00:34]} 25. Rc1 {[%emt 0:01:59]} a3 {[%emt 0:01:43]} 26. Be1 {[%emt 0:01:04]} Rb8 {[%emt 0:00:21]} 27. Rcc2 {[%emt 0:02:17]} Rb2 {[%emt 0:01:19]} 28. Nd2 {[%emt 0:00:43]} Nexd2+ {[%emt 0:04:17]} 29. Bxd2 {[%emt 0:00:22]} Rfb8 {[%emt 0:01:26]} 30. Bc1 {[%emt 0:01:29]} Rxa2 {[%emt 0:01:25]} 31. Rxa2 {[%emt 0:00:09]} Rb1 {[%emt 0:00:11]} 32. Rc2 {[%emt 0:00:28]} a2 {[%emt 0:01:28]} 33. Rxa2 {[%emt 0:00:05]} Rxc1+ {[%emt 0:00:13]} 34. Kg2 {[%emt 0:00:35]} a5 {[%emt 0:00:10]} 35. Ra4 {[%emt 0:00:30]} Rxc3 {[%emt 0:00:22]} 36. Ra1 {[%emt 0:00:33]} Rc2 {[%emt 0:00:19]} 37. Kf1 {[%emt 0:01:04]} Kf7 {[%emt 0:00:05]} 0-1